Cogmind - Beta 16 @@@ ROGUE MODE // 2025.10.25 @ 21:38:25 Player: Cog on my mind Result: Destroyed by Y-45 Defender with Beam Rifle Performance ------------- Evolutions (2) 1000 Regions Visited (3) 600 Robots Destroyed (71) 355 Value Destroyed (1740) 1740 Prototype IDs (3) 60 Alien Tech Used (0) 0 Bonus (36) 36 TOTAL SCORE: 3791 Bonus ------- High Alert Combat Kills 36 Cogmind --------- Core Integrity 0/550 Matter 295/300 Energy 99/100 System Corruption 1% Temperature Cool (27) Movement Core (50) Location -8/Materials Parts ------- > --- POWER (1) -------- (None) > --- PROPULSION (4) --- (None) > --- UTILITY (4) ------ (None) > --- WEAPON (2) ------- (None) > --- INVENTORY (5) ---- (None) Peak State ------------ > --- POWER ------------ Ion Engine > --- PROPULSION ------- Light Treads Wheel Compact Wheel Subdweller Monowheel > --- UTILITY ---------- Large Storage Unit Advanced Targeting Computer Weapon Cycler Makeshift Light Armor Plating > --- WEAPON ----------- Precision Beam Rifle Precision Beam Rifle > --- INVENTORY -------- SUBCON Basin [Rating: 44] Favorites ----------- Power Ion Engine Engine Ion Engine Propulsion Light Treads Treads Light Treads Wheel Compact Wheel Flight Unit Flight Unit Utility Large Storage Unit Device Seismic Detector Storage Large Storage Unit Processor Advanced Targeting Computer Protection Makeshift Light Armor Plating Weapon Shotgun Energy Gun Precision Beam Rifle Ballistic Gun Shotgun Ballistic Cannon Light Cannon Launcher Rocket Launcher Impact Weapon Maul Build | -11 -10 -10 -8 ------- Run | Yrd Mat Sub Mat Slots Evolved 4 | . . . 4 Power . | . . . . Propulsion 2 | . . . 2 Utility 2 | . . . 2 Weapon . | . . . . Parts Attached 53 | 6 14 11 22 Power 8 | 1 3 2 2 Engine 8 | 1 3 2 2 Core . | . . . . Reactor . | . . . . Propulsion 19 | 1 5 2 11 Treads 10 | 1 2 1 6 Leg . | . . . . Wheel 8 | . 3 1 4 Hover . | . . . . Flight 1 | . . . 1 Utility 11 | 2 1 2 6 Device 6 | 1 . 1 4 Storage 2 | 1 1 . . Processor 1 | . . . 1 Hackware . | . . . . Protection 2 | . . 1 1 Artifact . | . . . . Weapon 15 | 2 5 5 3 Energy Gun 4 | . 1 . 3 Energy Cannon . | . . . . Ballistic Gun 7 | 2 3 2 . Ballistic Cannon 1 | . 1 . . Launcher 2 | . . 2 . Special Weapon . | . . . . Impact Weapon 1 | . . 1 . Slashing Weapon . | . . . . Piercing Weapon . | . . . . Special Melee Weapon . | . . . . Unidentified Prototypes 1 | . . . 1 Parts Lost 20 | . 3 1 16 Power 2 | . 1 . 1 Propulsion 9 | . 1 . 8 Utility 5 | . . 1 4 Weapon 4 | . 1 . 3 Highest Loss Streak 5 | . 1 1 5 To Critical Strikes . | . . . . Average Backups 9 | 3 8 14 . Power . | . . . . Propulsion 2 | . 1 3 . Utility 1 | . 1 2 . Weapon 4 | 1 4 7 . Tool/Special . | . . . . Unused Backups 12 | . 2 10 . Power . | . . . . Propulsion 2 | . . 2 . Utility 3 | . . 3 . Weapon 7 | . 2 5 . Tool/Special . | . . . . Average Slot Usage (%) 95 | . 98 99 80 Engine 12 | . 13 14 7 Treads 18 | . 15 21 14 Wheel 8 | . 11 6 10 Device 10 | . 14 6 13 Storage 12 | . 14 14 8 Protection 5 | . . 7 6 Energy Gun 3 | . 3 . 11 Ballistic Gun 20 | . 22 25 4 Impact Weapon 1 | . . 2 . Peak Build Rating 44 | 6 11 31 44 Average Rating 16 | 4 9 13 38 On Entrance 12 | . 6 11 31 Avg Prop Armor Cover (%) 14 | . 14 4 25 Naked Turns 8 | . . . 8 Heaviest Build 41 | 13 32 36 41 Greatest Support 60 | 20 40 40 60 Greatest Overweight (x) 3 | . . 2 3 Average Overweight (x) . | . . . . Largest Inventory Capacity 15 | 8 15 15 15 Average Capacity 13 | 7 11 14 14 Most Carried 15 | 4 13 15 15 Average Carried 12 | 3 8 14 14 Final Capacity 15 | 8 15 15 5 Final Carried 15 | 4 13 15 . Class Distribution -------------------- 86% | Mutant 13% | Scavenger-Mutant Dominant Class ---------------- Mutant | -10/Materials Mutant | -10/Subcaves Scavenger-Mutant | -8/Materials Resources | -11 -10 -10 -8 ----------- Run | Yrd Mat Sub Mat Matter Collected 1796 | 298 393 750 355 Remotely . | . . . . Salvage Created 2332 | 102 837 384 1009 Parts 143 | 13 49 25 56 Haulers Intercepted 3 | . 2 . 1 Recyclers Shooed 5 | . 1 . 4 Parts Field Recycled . | . . . . Retrieved Matter . | . . . . Parts Self-Destructed 6 | . . 6 . Prevented . | . . . . Parts Restored . | . . . . Kills | -11 -10 -10 -8 ------- Run | Yrd Mat Sub Mat Combat Hostiles Destroyed 48 | . 11 13 24 Guns 44 | . 10 11 23 Cannons 1 | . 1 . . AOE 2 | . . 2 . Classes Destroyed 13 | 1 7 3 2 Worker 4 | . 1 . 3 Builder 2 | . . . 2 Tunneler 6 | 5 1 . . Hauler 3 | . 2 . 1 Recycler 3 | . 2 . 1 Mechanic 1 | . 1 . . Operator 1 | . 1 . . Watcher 3 | . 3 . . Swarmer 14 | . . 4 10 Grunt 21 | . 11 . 10 Duelist 1 | . . . 1 Sentry 4 | . . 1 3 Subdweller 8 | . . 8 . Best Kill Streak 8 | 2 4 2 8 Combat Bots Only 7 | . 3 2 7 Max Kills in Single Turn 2 | 1 2 2 2 Gunslinging 1 | . . . 1 Exploded 2 | . . 2 . Melee . | . . . . Uniques/NPCs Destroyed . | . . . . Combat | -11 -10 -10 -8 -------- Run | Yrd Mat Sub Mat Hostile Shots Fired 436 | . 58 51 327 Missed 138 | . 14 15 109 Hits 298 | . 44 36 218 Melee 1 | . . . 1 Projectile 297 | . 44 36 217 Critical Strikes 7 | . 3 1 3 Damage Taken 4011 | . 573 698 2740 Core 757 | . 73 134 550 Absorbed by Shields . | . . . . Core Remaining (%) 58 | 100 . 17 . Volleys Fired 211 | 19 80 35 77 Largest 2 | 2 2 2 2 Hottest 122 | 40 80 46 122 Shots Fired 413 | 38 160 67 148 Gun 394 | 38 147 61 148 Cannon 13 | . 13 . . Launcher 6 | . . 6 . Special . | . . . . Kinetic 260 | 38 115 62 45 Thermal 148 | . 45 . 103 Explosive 5 | . . 5 . Electromagnetic . | . . . . Robot Hit Streak 31 | 11 10 26 31 Robot Miss Streak 6 | 2 6 4 4 Penetration Max . | . . . . Secondary Targets 8 | . . 2 6 Max Gunslinging Chain 1 | . . 1 1 Shots Hit Robots 300 | 26 102 52 120 Core Hits 141 | 11 45 31 54 Critical Kills . | . . . . Critical Parts Destroyed 2 | 1 . . 1 Critical Strikes 12 | 1 3 1 7 Burn 9 | . 3 . 6 Destroy 3 | 1 . 1 1 Melee Attacks 8 | . . 8 . Impact 8 | . . 8 . Slashing . | . . . . Piercing . | . . . . Sneak Attacks . | . . . . Combat Hostiles . | . . . . Follow-up Attacks . | . . . . Damage Inflicted 4615 | 214 1269 1130 2002 Guns 4262 | 214 1127 920 2001 Cannons 142 | . 142 . . Explosions 210 | . . 210 . Melee . | . . . . Ramming 1 | . . . 1 Kinetic 2733 | 214 913 964 642 Thermal 1715 | . 356 . 1359 Explosive 166 | . . 166 . Electromagnetic . | . . . . Impact . | . . . . Slashing . | . . . . Piercing . | . . . . Highest Corruption 2 | . 2 2 1 Average Corruption 1 | . 2 2 1 Corruption Purged . | . . . . Corruption Blocked . | . . . . Effects 31 | . 5 26 . Message Errors 4 | . . 4 . Matter Fused 7 | . 1 6 . Heat Flow Errors 8 | . . 8 . Energy Discharges 4 | . 3 1 . Parts Rejected 2 | . . 2 . Data Loss (minor) 2 | . 1 1 . Data Loss (major) 1 | . . 1 . Misfires 3 | . . 3 . Overload Shots . | . . . . Overflow Damage . | . . . . Projectiles . | . . . . Explosions . | . . . . Melee . | . . . . Knockbacks 2 | . 2 . . Impact . | . . . . Kinetic 2 | . 2 . . Secondary . | . . . . Self-Inflicted Damage . | . . . . Shots . | . . . . Rammed 1 | . . . 1 Targets Rammed 1 | . . . 1 Kicked . | . . . . Crushed . | . . . . Highest Temperature 347 | . 244 179 347 Average Temperature 91 | . 76 77 102 Received Heat Transfer 1401 | . 378 132 891 Effects 3 | . . . 3 Energy Bleed 1 | . . . 1 Interference 2 | . . . 2 Siege Activations . | . . . . Martial Activations . | . . . . Shielding Activations . | . . . . Robots Disrupted . | . . . . Combat Hostiles . | . . . . Robots Corrupted . | . . . . Combat Hostiles . | . . . . Parts Fried . | . . . . Impact Corruptions . | . . . . Robots Melted 1 | . . . 1 Combat Hostiles 1 | . . . 1 Parts Melted 10 | . 2 1 7 Heat Transferred 4699 | . 1295 . 3404 Parts Sabotaged . | . . . . Parts Stolen . | . . . . Parts Stripped . | . . . . Power Chain Reactions . | . . . . Alert | -11 -10 -10 -8 ------- Run | Yrd Mat Sub Mat Maximum Alert Level 2 | . . . 2 Low Security (%) 74 | 100 100 . 30 Level 1 7 | . . . 19 Level 2 17 | . . . 49 Level 3 . | . . . . Level 4 . | . . . . Level 5 . | . . . . High Security . | . . . . Max Security . | . . . . Peak Influence 601 | 10 109 . 601 Initial 153 | . . . 153 Average 144 | . 38 . 344 Influence Increases 1671 | 25 377 355 914 Destroy 0b10 Robot/C 800 | . 220 100 480 Destroy 0b10 Robot/NC 115 | 25 55 . 35 Destroy Leader 172 | . 70 . 102 Successful Hack 59 | . 32 . 27 Disable Machine 15 | . . . 15 Lose Combat Pursuer 510 | . . 255 255 Influence Decreases 1098 | 25 377 59 637 Entered New Map 143 | . . . 143 Time Decay 765 | 25 347 59 334 Lost Part 190 | . 30 . 160 Squads Dispatched 12 | . 4 . 8 Investigation 1 | . 1 . . Extermination . | . . . . Reinforcement 6 | . 3 . 3 Assault 1 | . . . 1 Garrison 4 | . . . 4 Intercept . | . . . . Searches Triggered . | . . . . Construction Impeded 1 | . . . 1 Haulers Reinforced . | . . . . Active Scanning Responses . | . . . . Cargo Convoy Interrupts . | . . . . Stealth | -11 -10 -10 -8 --------- Run | Yrd Mat Sub Mat Distress Signals 6 | . 2 . 4 Communications Jammed . | . . . . Distress Signals . | . . . . Times Spotted 104 | . 24 19 61 Peak Tracking Total 16 | . 4 4 16 Tactical Retreats 10 | . . 4 6 Traps | -11 -10 -10 -8 ------- Run | Yrd Mat Sub Mat Traps Triggered 5 | . 2 . 3 Indirectly . | . . . . Trap Hack Attempts . | . . . . Triggered . | . . . . Disarmed . | . . . . Reprogrammed . | . . . . Reused . | . . . . Traps Extracted . | . . . . Installed . | . . . . Triggered . | . . . . Machines | -11 -10 -10 -8 ---------- Run | Yrd Mat Sub Mat Machines Disabled 4 | . . 3 1 Max in Single Turn 3 | . . 3 1 Machines Repaired . | . . . . Machines Dismantled . | . . . . Machines Sabotaged . | . . . . Overloaded Fab Kills . | . . . . Hacking | -11 -10 -10 -8 --------- Run | Yrd Mat Sub Mat Machines Accessed 11 | . 5 2 4 Terminals 9 | . 5 . 4 Fabricators . | . . . . Repair Stations . | . . . . Recycling Units . | . . . . Scanalyzers . | . . . . Garrison Access . | . . . . Total Hacks 34 | . 17 3 14 Successful 18 | . 7 3 8 Failed 16 | . 10 . 6 Catastrophic 1 | . 1 . . Database Lockouts . | . . . . Manual 19 | . 9 . 10 Terminals 31 | . 17 . 14 Fabricators . | . . . . Repair Stations . | . . . . Recycling Units . | . . . . Scanalyzers . | . . . . Garrison Access . | . . . . Terminal Hacks 10 | . 4 3 3 Record 1 | . . 1 . Robot Analysis 1 | . 1 . . Prototype ID Bank 1 | . 1 . . Open Door 1 | . . 1 . Branch Access Points 1 | . . . 1 Terminal Index 2 | . 1 . 1 Locate Traps 1 | . 1 . . Hauler Manifests 1 | . . . 1 Release Object 1 | . . 1 . Fabricator Hacks . | . . . . Repair Station Hacks . | . . . . Recycling Unit Hacks . | . . . . Scanalyzer . | . . . . Garrison Access Hacks . | . . . . Unauthorized Hacks 8 | . 3 . 5 Terminals 8 | . 3 . 5 Track 1 | . . . 1 Botnet 5 | . 3 . 2 Disrupt 2 | . . . 2 Fabricators . | . . . . Repair Stations . | . . . . Recycling Units . | . . . . Scanalyzers . | . . . . Garrison Access . | . . . . Data Cores Recovered . | . . . . Used . | . . . . Hacking Detections 9 | . 5 . 4 Full Trace Events . | . . . . Feedback Events . | . . . . Feedback Blocked . | . . . . Robot Schematics Acquired . | . . . . Robots Built . | . . . . Authchips . | . . . . Time . | . . . . Total Robot Build Rating . | . . . . Part Schematics Acquired . | . . . . Parts Built . | . . . . Authchips . | . . . . Time . | . . . . Total Part Build Rating . | . . . . Part Studies Acquired . | . . . . Parts Repaired . | . . . . Time . | . . . . Parts Recycled . | . . . . Recycled Matter . | . . . . Retrieved Matter . | . . . . Retrieved Components . | . . . . Parts Scanalyzed . | . . . . Part Schematics Acquired . | . . . . Parts Damaged . | . . . . Bothacking | -11 -10 -10 -8 ------------ Run | Yrd Mat Sub Mat Used RIF Installer . | . . . . Robots Hacked . | . . . . Non-combat . | . . . . Combat . | . . . . Robot Hacks Applied . | . . . . Relay Couplers Released . | . . . . Fabnet Peak Effective % . | . . . . Robots Rewired . | . . . . Allies Hacked . | . . . . Hacks Repelled . | . . . . Allies | -11 -10 -10 -8 -------- Run | Yrd Mat Sub Mat Total Allies . | . . . . Largest Group . | . . . . Highest-Rated Group . | . . . . Highest-Rated Ally . | . . . . Total Orders . | . . . . Ally Attacks . | . . . . Total Damage . | . . . . Kills . | . . . . Allies Corrupted . | . . . . Allies Melted . | . . . . Intel | -11 -10 -10 -8 ------- Run | Yrd Mat Sub Mat Active Infowar (turns) 1551 | 9 1063 479 . Seismic 1551 | 9 1063 479 . Robot Analysis Total 1 | . 1 . . Derelict Logs Recovered 1 | . . 1 . Drone Launches . | . . . . Drone Recoveries . | . . . . Exploration | -11 -10 -10 -8 ------------- Run | Yrd Mat Sub Mat Turns Passed 3931 | 261 1063 1854 753 Spaces Moved 2068 | 114 495 1093 366 Core 20 | 5 . . 15 Treads 1258 | 109 249 783 117 Legs . | . . . . Wheels 790 | . 246 310 234 Hover . | . . . . Flight . | . . . . Fastest Speed 50 | 50 100 105 50 Average Speed 139 | 155 130 147 122 Slowest Speed 240 | 160 160 160 240 Overloaded Moves . | . . . . Propulsion Burnouts . | . . . . Robots Hopped . | . . . . Potential Cave-ins . | . . . . Cave-ins Triggered . | . . . . Exploration Rate (%) 51 | 7 88 60 50 Regions Visited 3 Branch Regions 1 Pre-discovered Areas 1 | . . 1 . Known Exits Taken . | . . . . Unknown Exits Taken 3 | 1 1 1 . Scrap Searched 2 | . . 2 . Spaces Dug 11 | . . 11 . Terrain Destroyed 47 | . . 47 . Melee 3 | . . 3 . Projectile . | . . . . AOE 44 | . . 44 . Terrain Rammed . | . . . . Walls Destroyed . | . . . . Machines Disabled . | . . . . Actions | -11 -10 -10 -8 --------- Run | Yrd Mat Sub Mat Total 2730 | 165 766 1250 549 Wait 310 | 23 151 62 74 Move 2065 | 113 494 1092 366 Hop . | . . . . Pick Up 28 | 4 14 10 . Fast Attach 34 | 6 6 4 18 Attach 5 | . 3 2 . Detach 2 | . 2 . . Swap 31 | . 5 22 4 Drop 34 | . 11 15 8 Fire 211 | 19 80 35 77 Melee 8 | . . 8 . Ram 1 | . . . 1 Kick . | . . . . Crush . | . . . . Escape Stasis . | . . . . Rewire . | . . . . Trap . | . . . . Miscellaneous 1 | . . . 1 Route ------- -11/Scrapyard -10/Materials (discovered 5 exits: [*Mat x2] / [*Min x2] / *Sub) -10/Subcaves (discovered 3 exits: *Mat x2 / [*Rec]) -8/Materials History --------- Turn | Location | Event 7 | -11/Scrapyard | Discovered new exit (range 15) 262 | -11/Scrapyard | Entered Materials 302 | -10/Materials | Build established: Mutant 575 | -10/Materials | Discovered new exit (range 14) 786 | -10/Materials | Discovered new exit (range 16) 937 | -10/Materials | Discovered new exit (range 10) 1067 | -10/Materials | Discovered new exit (range 15) 1263 | -10/Materials | Discovered new exit (range 9) 1325 | -10/Materials | Entered Subcaves 1326 | -10/Subcaves | Approached by a straggling Scientist 1347 | -10/Subcaves | Shifting Twisted Machinery released Sub. Monowheel 1373 | -10/Subcaves | Shifting Twisted Machinery released Sub. Shrapnel Launcher 1686 | -10/Subcaves | Shifting Twisted Machinery released Barrage Gun 1687 | -10/Subcaves | Shifting Twisted Machinery released Hvy. Battle Rifle 1763 | -10/Subcaves | Ambushed by Subdwellers from Twisted Machinery 2057 | -10/Subcaves | Learned Materials terminal intel 2176 | -10/Subcaves | Learned location of Zion (-7) 2176 | -10/Subcaves | Met a Zionite searching for "candidates" 2246 | -10/Subcaves | Core integrity fell below 50% 2294 | -10/Subcaves | Discovered new exit (range 9) 2316 | -10/Subcaves | Discovered new exit (range 11) 2686 | -10/Subcaves | Shifting Twisted Machinery released Shrapnel Trap 2687 | -10/Subcaves | Shifting Twisted Machinery released Flamer 2961 | -10/Subcaves | Core integrity fell below 20% 2994 | -10/Subcaves | Discovered new exit (range 10) 3162 | -10/Subcaves | Found SUBCON Basin 3179 | -10/Subcaves | Entered Materials 3179 | -8/Materials | Evolved 4 slots: Propulsion x2, Utility x2 3180 | -8/Materials | Loaded intel: 12 terminal locations 3348 | -8/Materials | Garrison activated, responded to threat 3457 | -8/Materials | Garrison activated, responded to threat 3488 | -8/Materials | Destroyed 7 combat bots 3579 | -8/Materials | First assault squad dispatched 3829 | -8/Materials | Lost 4 parts (1p2n1u) 3911 | -8/Materials | Released subatomizers from SUBCON Basin 3922 | -8/Materials | Core integrity fell below 50% 3923 | -8/Materials | Lost 5 parts (1n2u2w) 3923 | -8/Materials | Released all parts (5) 3930 | -8/Materials | Core integrity fell below 20% 3932 | -8/Materials | Destroyed by Y-45 Defender with Beam Rifle Last Messages --------------- 03892_ Imp. Heat Sink destroyed. 03897_ S-10 Pest destroyed. 03907_ K-01 Serf destroyed. 03910_ Dropped SUBCON Basin. 03911_ Released subatomizers from SUBCON Basin. 03913_ Slammed into S-10 Pest. 03920_ R-06 Scavenger inserts Flight Unit into recycling unit. 03921_ Acquired 6 matter. 03923_ Com. Wheel destroyed. 03923_ Released Arm. Treads. 03923_ Released Weapon Cycler. 03923_ Released Lrg. Storage Unit. 03923_ Released Arm. Treads. 03923_ R-06 Scavenger inserts Lgt. Assault Rifle into recycling unit. 03924_ Acquired Flight Unit. 03925_ Flight Unit destroyed. 03926_ R-06 Scavenger inserts Melee Analysis Suite into recycling unit. Map ----- +----------------------------------------------------+ | ?????????????????????????????????????????? | | ?????????????????????????????????????????? | | ?????????????????????????????????????????? | | ?????????????????????????????????????????? | | ?????????????????????????????????????????? | | ?????????????????????????????????????????? | | ?????????????????????????????????????????? | | ?????????????????????????????????????????? | | ?????????????????????????? ????????????? | | ?????????????????? ????? +???????????? | | ?????????????????# ????? #???????????? | | ?????????????????# ????# #???????????? | | ?????????????????# #???# #???????????? | | ?????????????????# #???#k #???????????? | | ?????????????????# #???# #???????????? | | ?????????????????+ ##### #???????????? | | ?????????????????# +???????????? | | ?????????????????# #???????????? | | ?????????????????# """ #???????????? | | ?????????????????# """ ##??????????? | | ?????? ########### """ #??????????? | | ?????? #??????????? | | ?????? #??????????? | | ?????????? ! #??????????? | | ????????########?# #??????????? | | ????????# [ # ####@ ###########?? | | ????????# """ # #??# # #?? | | ????????# """ + #??# # #?? | | ????????# """ # #??# ; #?? | | ????????# # #??# # #?? | | ????????# ?# #??# ###########?? | | ?##?????#!! ?# #??# #######?????? | | #?????#!! ??# #??# #?????? | | " #?????#! ??#%= #??# g #?????? | | " ??????######???#* #??# ss" ###???? | | " ???????????????#%! #??# gs ""#???? | | "????????????????# #??# ^ g Y"#???? | | ???????????????## ##?# g Y [ ""#???? | | ################# #?#gg""T""g ###???? | | #?# g"""""% #?????? | | T #?# ==== #?????? | | #?# %[! #?????? | | #############+### #?###### #?????? | | ##????????? ############## #?????? | | !??????# #?????# # ####??? | | ??????# %#?????# # #??? | | ] #?????# ] #?????# | &# #??? | | #?????# #?????# / #??? | | #?????# #?????# ! # #??? | | *#?????########?????# # #??? | +----------------------------------------------------+ Best States ------------- Heat Dissipation 55 Coolant Potential 50 Energy Generation 12 Energy Capacity 265 Matter Stores 300 Matter Capacity 300 Sight Range 16 Terrain Scan Density 10 Armor Coverage 225 Weapon Cycling 15 Evasion (%) 50 Targeting Accuracy 8 Recoil Reduction 3 Item Schematics ----------------- None Robot Schematics ------------------ None Fabricated ------------ Nothing Repaired ---------- Nothing Studied --------- None Alien Tech Used ----------------- None Achievements -------------- None Challenges ------------ None Game ------ Seed RemoteArmorDeconstructor Manual? 0 Play Time 00:30:34 Cumulative 583.3 hours Start 2025.10.25 @ 21:06:25 End 2025.10.25 @ 21:38:25 Sessions 1 Manual Loads 0 Difficulty Rogue Special Mode None Game No. 127 Rogue 127 Adventurer 0 Explorer 0 Win Type - Total 43 Types 21/2/8/2/1/0/4/3/1/1 Lore% 93 Gallery% 82 Achievement% 52 Wizard Run 0 Options --------- Layout 1 ASCII 0 Keyboard 0 Movement Mouse Keybinds 0 Fullscreen 1 Font 24/Smallcaps Map View 50x35 Zoom Use 0% Tactical HUD 1 Map Filters NONE Filters NONE Steam 1 RUN: be2cd00b-2db5-42de-9670-b42a467bed37